bitfinex/quotes_BTCUSD_20241111
["timestamp","ask_amount","ask_price","bid_price","bid_amount"]
[1731295840255,0.023,81042.0,81040.0,0.0019409]
[1731295840467,0.001684,81043.0,81042.0,0.098714]
[1731295841063,0.001684,81043.0,81040.0,0.0019409]
[1731295841273,0.098715,81041.0,81040.0,0.0019409]
[1731295841454,0.100715,81041.0,81040.0,0.0019409]
[1731295841583,0.121715,81041.0,81040.0,0.0019409]
[1731295841789,0.023,81041.0,81040.0,0.0019409]
[1731295841992,0.123715,81041.0,81040.0,0.0019409]
[1731295842226,0.121715,81041.0,81040.0,0.0019409]
[1731295842933,0.121715,81041.0,81036.0,0.098721]
[1731295843136,0.006684,81043.0,81036.0,0.098721]
[1731295843137,0.008684,81043.0,81036.0,0.098721]
[1731295843283,0.121715,81042.0,81036.0,0.098721]
[1731295844073,0.001684,81043.0,81042.0,0.098714]
[1731295845004,0.006684,81043.0,81042.0,0.098714]
[1731295845164,0.001684,81043.0,81042.0,0.098714]
[1731295845372,0.006684,81043.0,81042.0,0.098714]
[1731295845580,0.008684,81043.0,81018.0,0.0783]
[1731295845789,0.006684,81043.0,81024.0,0.12594221]
[1731295846025,0.006684,81043.0,81042.0,0.098714]
[1731295846451,0.001684,81043.0,81042.0,0.098714]
[1731295846941,0.006684,81043.0,81042.0,0.098714]
[1731295847732,0.001684,81043.0,81042.0,0.098714]
[1731295847952,0.006684,81043.0,81042.0,0.098714]
[1731295848355,0.001684,81043.0,81042.0,0.098714]
[1731295848630,0.006684,81043.0,81042.0,0.098714]
[1731295849776,0.001684,81043.0,81042.0,0.098714]
[1731295850194,0.001684,81043.0,81042.0,0.22465621]
[1731295850758,0.001684,81043.0,81042.0,0.098714]
[1731295851629,0.001684,81043.0,81042.0,0.22465621]
[1731295852652,0.001684,81043.0,81041.0,0.098715]
[1731295852865,0.001684,81043.0,81037.0,0.197438]
[1731295852866,0.001684,81043.0,81042.0,0.098714]
[1731295853102,0.001684,81043.0,81030.0,0.197456]
[1731295853103,0.005,81035.0,81030.0,0.197456]
[1731295853300,0.005,81035.0,81031.0,0.12594221]
[1731295853631,0.005,81035.0,81032.0,0.098726]
[1731295853828,0.005,81035.0,81031.0,0.12594221]
[1731295853971,0.005,81035.0,81034.0,0.098723]
[1731295854457,0.005,81035.0,81031.0,0.12594221]
[1731295854669,0.005,81038.0,81031.0,0.12594221]
[1731295854826,0.005,81035.0,81034.0,0.098723]
[1731295855826,0.005,81035.0,81032.0,0.197452]
[1731295856039,0.005,81035.0,81034.0,0.098723]
[1731295856659,0.005,81035.0,81032.0,0.197452]
[1731295856891,0.0492,81041.0,81039.0,0.098717]
[1731295857091,0.18921521,81042.0,81039.0,0.098717]
[1731295857322,0.18921521,81042.0,81033.0,0.12594221]
[1731295857323,0.098718,81039.0,81033.0,0.12594221]
[1731295857531,0.005,81041.0,81033.0,0.12594221]
[1731295858029,0.005,81041.0,81034.0,0.197447]
[1731295858239,0.005,81041.0,81039.0,0.098717]
[1731295858981,0.001684,81043.0,81040.0,0.098715]
[1731295859158,0.001684,81043.0,81042.0,0.098714]
[1731295859919,0.001684,81043.0,81042.0,0.30545621]
[1731295860565,0.001684,81043.0,81042.0,0.3438351]
[1731295861072,0.001684,81043.0,81042.0,0.3546003]
[1731295862961,0.001684,81043.0,81042.0,0.59438488]
[1731295863171,0.001684,81043.0,81042.0,0.4546003]
[1731295864130,0.001684,81043.0,81042.0,0.48300079]
[1731295864528,0.001684,81043.0,81042.0,0.53000079]
[1731295864727,0.001684,81057.0,81056.0,0.098697]
[1731295864938,0.001684,81057.0,81056.0,0.50280268]
[1731295865506,0.001684,81057.0,81056.0,0.2630181]
[1731295865782,0.001684,81057.0,81056.0,0.098697]
[1731295865947,0.001684,81057.0,81014.0,0.03669791]
[1731295866169,0.001684,81057.0,81043.0,0.3617314]
[1731295866315,0.001684,81057.0,81053.0,0.0987]
[1731295866514,0.001684,81057.0,81051.0,0.197404]
[1731295866715,0.001684,81057.0,81056.0,0.098697]
[1731295867172,0.001684,81057.0,81056.0,0.22463921]
[1731295868424,0.001684,81057.0,81056.0,0.22710616]
[1731295868815,0.18385134,81071.0,81070.0,0.09868]
[1731295869345,0.000699,81072.0,81071.0,0.098678]
[1731295871734,0.000699,81072.0,81071.0,0.10114456]
[1731295872122,0.000699,81072.0,81071.0,0.22708677]
[1731295872342,0.000699,81072.0,81071.0,0.22462021]
[1731295873308,0.000699,81072.0,81071.0,0.22708667]
[1731295873730,0.000699,81072.0,81071.0,0.22462021]
[1731295874298,0.000699,81072.0,81071.0,0.22708657]
[1731295874899,0.000699,81072.0,81071.0,0.36687115]
[1731295875046,0.000699,81072.0,81071.0,0.49249855]
[1731295875274,0.000699,81072.0,81071.0,0.63228313]
[1731295875612,0.000699,81072.0,81071.0,0.67055417]
[1731295876020,0.000699,81077.0,81076.0,0.098672]
[1731295876221,0.000699,81077.0,81076.0,0.39097901]
[1731295877445,0.000699,81077.0,81076.0,0.50266983]
[1731295877645,0.000699,81077.0,81076.0,0.32461421]
[1731295877980,0.000699,81077.0,81076.0,0.35575884]
[1731295878322,0.000699,81077.0,81076.0,0.36636886]
[1731295878962,0.000699,81077.0,81076.0,0.33522423]
[1731295879189,0.000699,81077.0,81076.0,0.36636886]
[1731295881708,0.000699,81077.0,81076.0,0.40453739]
[1731295881910,0.000699,81077.0,81076.0,0.36636886]
[1731295882122,1e-06,81077.0,81076.0,0.53133619]
[1731295884105,1e-06,81077.0,81076.0,0.45289156]
[1731295884261,1e-06,81077.0,81076.0,0.37339156]
[1731295884458,1e-06,81077.0,81076.0,0.33522423]
[1731295884653,1e-06,81077.0,81076.0,0.36636886]
[1731295885245,1e-06,81077.0,81076.0,0.40451262]
[1731295885372,1e-06,81077.0,81076.0,0.36636886]
[1731295886000,1e-06,81077.0,81076.0,0.37336345]
[1731295886362,1e-06,81077.0,81076.0,0.33522423]
[1731295886764,1e-06,81077.0,81076.0,0.36636886]
[1731295887013,1e-06,81077.0,81076.0,0.37336113]
[1731295887211,1e-06,81077.0,81076.0,0.37500881]
[1731295888493,1e-06,81077.0,81076.0,0.47500881]
[1731295890578,1e-06,81077.0,81076.0,0.33522423]
[1731295892308,0.18421521,81090.0,81077.0,0.1]
[1731295892511,0.18421521,81090.0,81089.0,0.098657]
[1731295892769,0.18421521,81090.0,81089.0,0.22459921]
[1731295892995,0.001684,81091.0,81090.0,0.098655]
[1731295893207,0.001684,81091.0,81090.0,0.22706284]
[1731295893421,0.001684,81091.0,81090.0,0.22459721]
[1731295894474,0.001684,81091.0,81090.0,0.26285466]
[1731295894707,0.001684,81091.0,81090.0,0.40263924]
[1731295895090,0.001684,81091.0,81090.0,0.50263924]
[1731295896085,0.0469,81115.0,81104.0,0.098638]
[1731295896281,0.078684,81116.0,81104.0,0.22704557]
[1731295896869,0.078684,81116.0,81104.0,0.39644005]
[1731295897067,0.078684,81116.0,81104.0,0.39397469]
[1731295898382,0.001684,81116.0,81104.0,0.39397469]
[1731295899082,0.001684,81116.0,81104.0,0.53375927]
[1731295900333,0.001684,81116.0,81104.0,0.54479422]
[1731295900710,0.001684,81116.0,81104.0,0.51364959]
[1731295900904,0.001684,81116.0,81104.0,0.54479422]
[1731295901568,0.001684,81116.0,81104.0,0.51364959]
[1731295904470,0.001684,81116.0,81104.0,0.54479422]
[1731295905214,0.001684,81116.0,81104.0,0.51364959]
[1731295907755,0.001684,81116.0,81104.0,0.37386501]
[1731295907974,0.001684,81116.0,81104.0,0.51364959]
[1731295908178,0.0783,81115.0,81104.0,0.51364959]
[1731295911814,0.001684,81116.0,81104.0,0.51364959]
[1731295913295,0.18491421,81117.0,81104.0,0.51364959]
[1731295913296,0.14229721,81117.0,81116.0,0.098624]
[1731295913493,0.14229721,81117.0,81116.0,0.50260064]
[1731295913494,0.14834948,81117.0,81116.0,0.50260064]
[1731295913717,0.00605227,81117.0,81116.0,0.50260064]
[1731295913913,0.077599,81121.0,81116.0,0.40397664]
[1731295914123,0.077599,81121.0,81120.0,0.098619]
[1731295914431,0.077599,81121.0,81120.0,0.22456121]
[1731295914980,0.08365292,81121.0,81120.0,0.22456121]
[1731295916886,0.08365292,81121.0,81120.0,0.23545456]
[1731295917089,0.13245292,81121.0,81120.0,0.23545456]
[1731295917295,0.13245292,81121.0,81120.0,0.22456121]
[1731295919279,0.13245292,81121.0,81120.0,0.22702641]
[1731295919686,0.000699,81121.0,81120.0,0.22702641]
[1731295919983,0.000699,81121.0,81120.0,0.46681099]
[1731295920182,0.000699,81121.0,81120.0,0.46434579]
[1731295920579,0.082,81129.0,81122.0,0.198616]
[1731295920784,0.082,81129.0,81122.0,0.32455821]
[1731295922268,0.082,81129.0,81122.0,0.22455821]
[1731295922467,0.131499,81123.0,81122.0,0.22455821]
[1731295922844,0.13758711,81123.0,81122.0,0.22455821]
[1731295924002,0.131499,81123.0,81122.0,0.22455821]
[1731295924214,0.13758711,81123.0,81122.0,0.22455821]
[1731295924448,0.13758711,81123.0,81122.0,0.12594221]
[1731295924643,0.13758711,81123.0,81121.0,0.009301]
[1731295924644,0.1228,81122.0,81121.0,0.009301]
[1731295924862,0.1228,81122.0,81121.0,0.107919]
[1731295925066,0.1288877,81122.0,81121.0,0.107919]
[1731295925625,0.1288877,81122.0,81121.0,0.009301]
[1731295925820,0.1288877,81122.0,81121.0,0.107919]
[1731295927522,0.1288877,81122.0,81121.0,0.009301]
[1731295927733,0.1338877,81122.0,81121.0,0.009301]
[1731295927940,0.37428828,81122.0,81121.0,0.009301]
[1731295928179,0.100629,81112.0,81108.0,0.18421521]
[1731295928395,0.0781,81111.0,81108.0,0.18421521]
[1731295928579,0.0458,81110.0,81108.0,0.18421521]
[1731295928779,0.0458,81110.0,81104.0,0.197275]
[1731295928780,0.0781,81109.0,81104.0,0.197275]
[1731295928993,0.0781,81109.0,81104.0,0.098638]
[1731295929124,0.00603062,81108.0,81104.0,0.098638]
[1731295929325,0.0781,81107.0,81097.0,0.197293]
[1731295929564,0.0781,81107.0,81098.0,0.03839777]
[1731295929565,0.1239,81100.0,81098.0,0.03839777]
[1731295929761,0.0781,81096.0,81094.0,0.18421521]
[1731295929963,0.0781,81096.0,81090.0,0.099658]
[1731295930168,0.0062103,81095.0,81091.0,0.12678321]
[1731295930583,0.0062103,81095.0,81092.0,0.098653]
[1731295930801,0.0062103,81095.0,81091.0,0.12678321]
[1731295930981,0.0482,81094.0,81091.0,0.12678321]
[1731295931182,0.0766,81093.0,81091.0,0.12678321]
[1731295931407,0.08277829,81093.0,81092.0,0.098653]
[1731295931624,0.08277829,81093.0,81092.0,0.22459521]
[1731295931783,0.08277829,81093.0,81092.0,0.32765739]
[1731295931784,0.00617829,81093.0,81092.0,0.32765739]
[1731295931989,0.0766,81101.0,81100.0,0.098643]
[1731295932354,0.0766,81101.0,81100.0,0.22458521]
[1731295933320,0.0766,81110.0,81109.0,0.098632]
[1731295933568,0.0766,81110.0,81109.0,0.22457421]
[1731295933873,0.0766,81110.0,81109.0,0.098632]
[1731295934053,0.0766,81110.0,81105.0,0.098637]
[1731295934306,0.0766,81110.0,81094.0,0.18421521]
[1731295934307,0.005,81104.0,81094.0,0.18421521]
[1731295934543,0.002,81111.0,81098.0,0.18421521]
[1731295934544,0.0482,81100.0,81098.0,0.18421521]
[1731295934705,0.098645,81099.0,81091.0,0.198148]
[1731295934903,0.002,81094.0,81091.0,0.099494]
[1731295935128,0.0766,81097.0,81091.0,0.000841]
[1731295935248,0.0766,81097.0,81096.0,0.098648]
[1731295936251,0.0766,81097.0,81093.0,0.197304]
[1731295936252,0.0766,81097.0,81094.0,0.09865]
[1731295936463,0.0766,81097.0,81096.0,0.098648]
[1731295937567,0.002,81095.0,81091.0,0.000841]
[1731295937713,0.002,81095.0,81094.0,0.09865]
[1731295937916,0.0766,81097.0,81096.0,0.098648]
[1731295938111,0.08268826,81097.0,81094.0,0.09865]
[1731295938319,0.08268826,81097.0,81091.0,0.000841]
[1731295938518,0.00608826,81097.0,81096.0,0.31015742]
[1731295938733,0.18421521,81113.0,81097.0,0.1]
[1731295938961,0.18421521,81113.0,81112.0,0.098629]
[1731295939168,0.18421521,81113.0,81112.0,0.22457121]
[1731295939373,0.0832,81115.0,81114.0,0.098626]
[1731295940222,0.005,81117.0,81114.0,0.098626]
[1731295940223,0.000699,81123.0,81122.0,0.098616]
[1731295940436,0.000699,81123.0,81122.0,0.22702334]
[1731295941407,0.000699,81123.0,81122.0,0.22455821]
[1731295941743,0.000699,81123.0,81122.0,0.098616]
[1731295941935,0.005,81118.0,81113.0,0.197255]
[1731295942161,0.005,81111.0,81104.0,0.12594221]
[1731295942359,0.002,81107.0,81104.0,0.18421521]
[1731295942588,0.005,81105.0,81104.0,0.18421521]
[1731295942761,0.1339,81105.0,81093.0,0.18421521]
[1731295942939,0.005,81103.0,81102.0,0.098641]
[1731295943522,0.005,81103.0,81099.0,0.098644]
[1731295943723,0.005,81103.0,81102.0,0.098641]
[1731295944563,0.1339,81105.0,81104.0,0.098638]
[1731295945582,0.005,81103.0,81102.0,0.09864]
[1731295945793,0.005,81103.0,81093.0,0.18421521]
[1731295945998,0.002,81097.0,81094.0,0.12594221]
[1731295946204,0.005,81103.0,81097.0,0.197293]
[1731295946436,0.1289,81105.0,81097.0,0.197293]
[1731295946437,0.002,81100.0,81099.0,0.098644]
[1731295946587,0.005,81101.0,81100.0,0.098643]
[1731295946785,0.005,81101.0,81097.0,0.197293]
[1731295946984,0.005,81099.0,81097.0,0.197293]
[1731295947346,0.005,81099.0,81098.0,0.098646]
[1731295951698,0.005,81109.0,81104.0,0.098638]
[1731295951899,0.18421521,81113.0,81112.0,0.098629]
[1731295951900,0.18921521,81113.0,81112.0,0.098629]
[1731295952269,0.005,81111.0,81110.0,0.295892]
[1731295952468,0.0827,81116.0,81110.0,0.295892]
[1731295952469,0.005,81115.0,81114.0,0.098626]
[1731295953018,0.002,81108.0,81103.0,0.197278]
[1731295953235,0.0827,81116.0,81098.0,0.18421521]
[1731295953236,0.002,81099.0,81098.0,0.18421521]
[1731295953455,0.005,81103.0,81098.0,0.18421521]
[1731295953456,0.1283,81102.0,81098.0,0.28286021]
[1731295953651,0.1283,81102.0,81096.0,0.197296]
[1731295953851,0.00600138,81101.0,81100.0,0.098643]
[1731295954209,0.1283,81102.0,81097.0,0.32323621]
[1731295954413,0.1283,81102.0,81101.0,0.098642]
[1731295954595,0.1283,81102.0,81099.0,0.098643]
[1731295954800,0.1283,81102.0,81100.0,0.098642]
[1731295955000,0.1283,81102.0,81101.0,0.098642]
[1731295955426,0.1283,81102.0,81096.0,0.000841]
[1731295955427,0.1283,81102.0,81099.0,0.098644]
[1731295955635,0.1283,81102.0,81097.0,0.197294]
[1731295955833,0.1283,81102.0,81100.0,0.098643]
[1731295956041,0.1283,81102.0,81101.0,0.098642]
[1731295956316,0.1283,81102.0,81097.0,0.197294]
[1731295956496,0.1283,81102.0,81101.0,0.098642]
[1731295956648,0.1283,81102.0,81100.0,0.098643]
[1731295956860,0.1283,81102.0,81098.0,0.098645]
[1731295957243,0.1283,81102.0,81096.0,0.12678321]
[1731295957442,0.1283,81102.0,81099.0,0.098644]
[1731295957902,0.1283,81102.0,81100.0,0.098643]
[1731295958105,0.1283,81102.0,81096.0,0.12678321]
[1731295958263,0.1283,81102.0,81097.0,0.098646]
[1731295958679,0.1283,81102.0,81100.0,0.098642]
[1731295959483,0.1283,81102.0,81101.0,0.098642]
[1731295960313,0.1303,81102.0,81101.0,0.098642]
[1731295960519,0.13629167,81102.0,81101.0,0.098642]
[1731295960756,0.002,81101.0,81099.0,0.098644]
[1731295961002,0.002,81101.0,81096.0,0.000841]
[1731295961003,0.005,81097.0,81096.0,0.000841]
[1731295961457,0.0109896,81097.0,81096.0,0.000841]
[1731295962085,0.1096366,81097.0,81096.0,0.000841]
[1731295962290,0.1116366,81097.0,81096.0,0.000841]
[1731295962744,0.1166366,81097.0,81096.0,0.000841]
[1731295962950,0.1991366,81097.0,81096.0,0.000841]
[1731295963158,0.2468366,81097.0,81096.0,0.000841]
[1731295963806,0.1411896,81097.0,81096.0,0.000841]
[1731295963983,0.1411896,81097.0,81096.0,0.099489]
[1731295966748,0.1431896,81097.0,81096.0,0.000841]
[1731295966958,0.2418366,81097.0,81096.0,0.000841]
[1731295967224,0.2018366,81097.0,81096.0,0.000841]
[1731295967526,0.2068366,81097.0,81096.0,0.000841]
[1731295967763,0.2298366,81097.0,81096.0,0.000841]
[1731295968175,0.002,81081.0,81072.0,0.000841]
[1731295968391,0.148366,81081.0,81072.0,0.000841]
[1731295968529,0.148366,81081.0,81074.0,0.098674]
[1731295968742,0.002,81077.0,81074.0,0.098674]
[1731295969166,0.098668,81080.0,81074.0,0.098674]
[1731295969167,0.002,81079.0,81074.0,0.098674]
[1731295969376,0.098671,81077.0,81072.0,0.099517]
[1731295969698,0.296002,81080.0,81073.0,0.098676]
[1731295969837,0.0527,81081.0,81072.0,0.000841]
[1731295969838,0.100671,81077.0,81072.0,0.000841]
[1731295970080,0.183171,81077.0,81072.0,0.000841]
[1731295970275,0.211171,81077.0,81072.0,0.000841]
[1731295972118,0.0825,81077.0,81072.0,0.000841]
[1731295972356,0.181171,81077.0,81072.0,0.000841]
[1731295972527,0.0825,81077.0,81073.0,0.098675]
[1731295973051,0.0825,81077.0,81072.0,0.198195]
[1731295973230,0.0825,81077.0,81075.0,0.098673]
[1731295973603,0.0845,81077.0,81073.0,0.098676]
[1731295973832,0.0845,81077.0,81072.0,0.000841]
[1731295974026,0.0845,81077.0,81074.0,0.098674]
[1731295974233,0.0845,81077.0,81072.0,0.000841]
[1731295974234,0.0825,81077.0,81073.0,0.098676]
[1731295974349,0.0845,81077.0,81073.0,0.098676]
[1731295974989,0.0845,81077.0,81072.0,0.198194]
[1731295975194,0.0825,81077.0,81076.0,0.099513]
[1731295975856,0.0825,81077.0,81076.0,0.000841]
[1731295976224,0.0825,81077.0,81076.0,0.099513]
[1731295976713,0.0825,81077.0,81076.0,0.000841]
[1731295978767,0.0825,81077.0,81076.0,0.099513]
[1731295979429,0.002,81083.0,81076.0,0.000841]
[1731295979838,0.002,81083.0,81081.0,0.098665]
[1731295980186,0.002,81083.0,81076.0,0.198185]
[1731295980187,0.0791,81086.0,81079.0,0.18421521]
[1731295980395,0.01594156,81099.0,81091.0,0.197307]
[1731295980593,0.13,81100.0,81091.0,0.098654]
[1731295980594,0.18421521,81092.0,81091.0,0.098654]
[1731295980771,0.006682,81097.0,81083.0,0.197328]
[1731295980979,0.006682,81097.0,81084.0,0.12594221]
[1731295981544,0.006682,81097.0,81093.0,0.098651]
[1731295981745,0.105329,81097.0,81091.0,0.098654]
[1731295982387,0.006682,81097.0,81091.0,0.098654]
[1731295982794,0.002,81083.0,81078.0,0.197339]
[1731295983013,0.002,81078.0,81077.0,0.28288521]
[1731295983417,0.002,81078.0,81074.0,0.197349]
[1731295983616,0.002,81078.0,81070.0,0.19736]
[1731295983882,0.002,81078.0,81077.0,0.098671]
[1731295984012,0.002,81078.0,81074.0,0.098674]
[1731295984199,0.098668,81080.0,81074.0,0.098674]
[1731295984405,0.098667,81081.0,81070.0,0.19736]
[1731295984604,0.100671,81077.0,81066.0,0.197368]
[1731295984807,0.0822,81082.0,81074.0,0.197349]
[1731295985006,0.0822,81082.0,81079.0,0.098669]
[1731295985228,0.0822,81082.0,81081.0,0.098666]
[1731295985988,0.0461,81083.0,81082.0,0.098665]
[1731295986192,0.178157,81089.0,81079.0,0.197338]
[1731295986193,0.0795,81089.0,81079.0,0.197338]
[1731295986437,0.0795,81089.0,81084.0,0.098662]
[1731295986586,0.0484,81092.0,81080.0,0.18668176]
[1731295986792,0.0484,81092.0,81091.0,0.098654]
[1731295986970,0.0845,81096.0,81089.0,0.197313]
[1731295987168,0.0845,81096.0,81091.0,0.197308]
[1731295987375,0.0845,81096.0,81090.0,0.098655]
[1731295987696,0.0845,81096.0,81091.0,0.098653]
[1731295988018,0.0845,81096.0,81091.0,0.098654]
[1731295988220,0.0795,81096.0,81080.0,0.31015742]
[1731295988374,0.0795,81096.0,81095.0,0.098649]
[1731295988573,0.002,81092.0,81091.0,0.098654]
[1731295988840,0.0845,81096.0,81086.0,0.197321]
[1731295989047,0.0845,81096.0,81093.0,0.098651]
[1731295989252,0.0845,81096.0,81088.0,0.197316]
[1731295989380,0.0845,81096.0,81093.0,0.098651]
[1731295989580,0.0845,81096.0,81092.0,0.098652]
[1731295989791,0.0845,81096.0,81088.0,0.197316]
[1731295990021,0.0795,81096.0,81094.0,0.09865]
[1731295990230,0.0795,81096.0,81082.0,0.197331]
[1731295990231,0.0795,81096.0,81089.0,0.197314]
[1731295990374,0.0795,81096.0,81095.0,0.098649]
[1731295991031,0.001682,81097.0,81096.0,0.098648]
[1731295994615,0.001682,81097.0,81096.0,0.36471271]
[1731295994815,0.001682,81097.0,81096.0,0.22459021]
[1731295995221,0.001682,81097.0,81096.0,0.098648]
[1731295997566,0.001682,81097.0,81091.0,0.098653]
[1731295997814,0.001682,81097.0,81088.0,0.197315]
[1731295998078,0.001682,81097.0,81089.0,0.12594221]
[1731295998302,0.001682,81097.0,81093.0,0.098651]
[1731295998522,0.001682,81097.0,81089.0,0.12594221]
[1731295998523,0.001682,81097.0,81091.0,0.098653]
[1731295998721,0.001682,81097.0,81091.0,0.197309]
[1731295998918,0.001682,81097.0,81094.0,0.09865]
[1731295999168,0.001682,81097.0,81091.0,0.197309]
[1731295999169,0.001682,81097.0,81095.0,0.098649]
[1731295999605,0.001682,81097.0,81089.0,0.12594221]
[1731295999984,0.001682,81097.0,81093.0,0.098651]
[1731296000178,0.001682,81097.0,81094.0,0.09865]
[1731296000357,0.003682,81097.0,81094.0,0.09865]
[1731296000554,0.003682,81097.0,81095.0,0.098649]
[1731296000943,0.001682,81097.0,81095.0,0.098649]
[1731296001143,0.001682,81097.0,81092.0,0.197306]
[1731296001144,0.001682,81097.0,81096.0,0.098648]
[1731296003591,0.001682,81097.0,81089.0,0.12594221]
[1731296003827,0.001682,81097.0,81091.0,0.098653]
[1731296004025,0.001682,81097.0,81096.0,0.098648]
[1731296004433,0.001682,81097.0,81092.0,0.098653]
[1731296004565,0.001682,81097.0,81094.0,0.09865]
[1731296004972,0.003682,81097.0,81094.0,0.09865]
[1731296005417,0.001682,81097.0,81094.0,0.09865]
[1731296005579,0.001682,81097.0,81095.0,0.098649]
[1731296006585,0.001682,81097.0,81096.0,0.098648]
[1731296007201,0.001682,81097.0,81093.0,0.197304]
[1731296007401,0.001682,81097.0,81096.0,0.098648]
[1731296008343,0.001682,81097.0,81096.0,0.22459021]
[1731296009455,0.001682,81097.0,81096.0,0.22642765]
[1731296009866,0.001682,81097.0,81096.0,0.23697157]
[1731296010995,0.001682,81097.0,81096.0,0.23943748]
[1731296011433,0.001682,81097.0,81096.0,0.23513413]
[1731296011985,0.001682,81097.0,81096.0,0.23760003]
[1731296012155,0.13589721,81110.0,81109.0,0.098632]
[1731296012643,0.005,81113.0,81111.0,0.09863]
[1731296013997,0.005,81113.0,81112.0,0.098629]
[1731296015220,0.0453,81119.0,81113.0,0.098627]
[1731296015481,0.0453,81119.0,81109.0,0.197265]
[1731296015482,0.0453,81119.0,81118.0,0.098621]
[1731296017125,0.002,81118.0,81117.0,0.098622]
[1731296017327,0.0453,81119.0,81110.0,0.197262]
[1731296017489,0.0453,81119.0,81111.0,0.19726]
[1731296017693,0.0453,81119.0,81118.0,0.098621]
[1731296019326,0.0453,81119.0,81117.0,0.098622]
[1731296020331,0.002,81116.0,81114.0,0.098625]
[1731296020707,0.002,81116.0,81111.0,0.19726]
[1731296020911,0.002,81116.0,81115.0,0.098625]
[1731296021438,0.0453,81119.0,81118.0,0.098621]
[1731296021851,0.0473,81119.0,81118.0,0.098621]
[1731296022073,0.0473,81119.0,81109.0,0.12594221]
[1731296022074,0.002,81117.0,81112.0,0.098628]
[1731296022276,0.0453,81119.0,81113.0,0.18421521]
[1731296022473,0.0453,81119.0,81082.0,0.0368244]
[1731296022474,0.0453,81119.0,81115.0,0.197249]
[1731296022653,0.001682,81121.0,81115.0,0.12594221]
[1731296022847,0.001682,81121.0,81120.0,0.098619]
[1731296027675,0.001682,81121.0,81119.0,0.09862]
[1731296027887,0.001682,81121.0,81120.0,0.098619]
[1731296028267,0.003682,81121.0,81120.0,0.098619]
[1731296028797,0.001682,81121.0,81120.0,0.098619]
[1731296030282,0.001682,81121.0,81110.0,0.000842]
[1731296030283,0.002,81114.0,81110.0,0.000842]
[1731296030443,0.0816,81117.0,81114.0,0.197252]
[1731296030670,0.0816,81117.0,81116.0,0.098624]
[1731296035987,0.0816,81117.0,81113.0,0.197255]
[1731296035988,0.0836,81117.0,81113.0,0.197255]
[1731296036189,0.0836,81117.0,81111.0,0.12594221]
[1731296036609,0.0836,81117.0,81116.0,0.098624]
[1731296037551,0.0836,81117.0,81113.0,0.197255]
[1731296037552,0.0836,81117.0,81111.0,0.12594221]
[1731296038125,0.0836,81117.0,81115.0,0.098625]
[1731296040259,0.0816,81117.0,81116.0,0.098624]
[1731296040479,0.0816,81117.0,81111.0,0.12594221]
[1731296040702,0.15113,81111.0,81110.0,0.000842]
[1731296040907,0.4035525,81111.0,81110.0,0.000842]
[1731296043326,0.40028077,81111.0,81110.0,0.000842]
[1731296045586,0.25515827,81111.0,81110.0,0.000842]
[1731296045772,0.005,81112.0,81110.0,0.000842]
[1731296045971,0.002,81111.0,81110.0,0.000842]
[1731296047017,0.005,81115.0,81113.0,0.098627]
[1731296047220,0.0473,81119.0,81111.0,0.19726]
[1731296047361,0.023,81120.0,81118.0,0.098621]
[1731296047565,0.023,81120.0,81112.0,0.197258]
[1731296047785,0.023,81120.0,81117.0,0.098622]
[1731296047995,0.005,81122.0,81111.0,0.19726]
[1731296048196,0.005,81122.0,81120.0,0.098619]
[1731296049187,0.005,81122.0,81118.0,0.09862]
[1731296049393,0.1418045,81121.0,81118.0,0.09862]
[1731296049590,0.098621,81118.0,81110.0,0.000842]
[1731296049795,0.0464,81116.0,81112.0,0.098629]
[1731296049999,0.002,81114.0,81112.0,0.098629]
[1731296050477,0.0514,81116.0,81112.0,0.098629]
[1731296050645,0.0514,81116.0,81110.0,0.000842]
[1731296051049,0.0514,81116.0,81113.0,0.098626]
[1731296051251,0.0514,81116.0,81111.0,0.19726]
[1731296051623,0.005,81118.0,81112.0,0.197258]
[1731296051832,0.005,81116.0,81115.0,0.098625]
[1731296052949,0.005,81118.0,81111.0,0.19726]
[1731296053151,0.002,81116.0,81115.0,0.098624]
[1731296053351,0.002,81113.0,81110.0,0.000842]
[1731296053574,0.14873,81111.0,81110.0,0.000842]
[1731296053774,0.25503,81111.0,81110.0,0.000842]
[1731296054097,0.36003,81111.0,81110.0,0.000842]
[1731296058589,0.3709178,81111.0,81110.0,0.000842]
[1731296059691,0.007,81115.0,81110.0,0.000842]
[1731296059896,0.023,81115.0,81110.0,0.000842]
[1731296060103,0.005,81117.0,81110.0,0.000842]
[1731296060104,0.005,81116.0,81111.0,0.19726]
[1731296060300,0.006684,81117.0,81116.0,0.098624]
[1731296060526,0.006684,81117.0,81112.0,0.098628]
[1731296060776,0.100629,81112.0,81110.0,0.000842]
[1731296060963,0.002,81112.0,81110.0,0.000842]
[1731296061303,0.002,81113.0,81112.0,0.098629]
[1731296061436,0.005,81114.0,81112.0,0.098629]
[1731296061642,0.005,81114.0,81111.0,0.09863]
[1731296062054,0.005,81114.0,81112.0,0.098628]
[1731296062264,0.005,81114.0,81113.0,0.098627]
[1731296062663,0.005,81114.0,81111.0,0.098629]
[1731296062843,0.005,81114.0,81110.0,0.000842]
[1731296063044,0.005,81114.0,81111.0,0.19726]
[1731296063290,0.005,81114.0,81113.0,0.098627]
[1731296064148,0.001684,81117.0,81116.0,0.098624]
[1731296064574,0.001684,81117.0,81116.0,0.2270317]
[1731296066110,0.001684,81117.0,81116.0,0.4721542]
[1731296066314,0.001684,81117.0,81116.0,0.32956621]
[1731296066521,0.001684,81117.0,81116.0,0.50803567]
[1731296066724,0.001684,81117.0,81116.0,0.55553567]